bitfinex-derivatives/quotes_ETHF0:USTF0_20260203
["timestamp","ask_amount","ask_price","bid_price","bid_amount"]
[1770082440106,6.986,2345.8,2345.0,2.32939912]
[1770082440405,6.986,2345.8,2345.1,9.13097498]
[1770082440603,6.986,2345.8,2345.1,2.32939912]
[1770082440803,6.986,2345.8,2345.2,6.80157586]
[1770082442200,6.986,2345.8,2345.1,2.32939912]
[1770082442403,1.0403,2345.9,2345.3,2.32939912]
[1770082442599,2.2144612,2346.5,2345.2,2.32939912]
[1770082442802,2.2144612,2346.5,2345.3,2.32939912]
[1770082443103,2.4277412,2346.5,2345.3,2.32939912]
[1770082443305,2.42346882,2346.3,2345.0,2.32939912]
[1770082443500,5.2142048,2346.6,2345.0,2.32939912]
[1770082443501,2.21016882,2346.1,2345.0,2.32939912]
[1770082443907,2.21016882,2346.1,2345.0,9.13097498]
[1770082444507,2.21016882,2346.1,2345.1,2.32939912]
[1770082444702,2.21016882,2346.3,2345.1,2.32939912]
[1770082444900,2.42343882,2346.6,2345.4,2.32939912]
[1770082445101,0.21327,2346.6,2345.5,2.32939912]
[1770082445304,0.21327,2346.6,2345.7,9.13097498]
[1770082445501,0.21327,2346.6,2345.7,2.32939912]
[1770082445706,0.21327,2346.6,2345.9,6.80157586]
[1770082445902,2.42263891,2346.6,2345.8,6.80157586]
[1770082446607,0.00488697,2347.0,2346.5,2.32939912]
[1770082446812,8.15436891,2347.3,2346.5,2.33447074]
[1770082447012,2.20936891,2347.2,2346.5,0.00507162]
[1770082447611,5.945,2347.3,2346.6,9.13097498]
[1770082447806,5.94934086,2347.3,2346.6,9.13097498]
[1770082448312,6.999,2347.7,2346.9,9.13097498]
[1770082448605,6.999,2347.7,2346.9,2.32939912]
[1770082449312,7.00271649,2347.7,2346.9,2.32939912]
[1770082449510,2.20256307,2347.6,2346.5,0.00507162]
[1770082450212,2.41575307,2347.6,2346.5,0.00507162]
[1770082450607,2.20256307,2347.4,2346.5,0.00507162]
[1770082451213,2.20256307,2347.4,2346.3,2.32939912]
[1770082451214,2.23628891,2347.1,2346.0,2.32939912]
[1770082451416,2.23628891,2346.9,2346.0,2.32939912]
[1770082451615,2.23628891,2346.9,2346.1,2.32939912]
[1770082451815,7.002,2347.0,2346.3,6.80157586]
[1770082452017,7.002,2347.0,2346.2,2.32939912]
[1770082452216,9.23828891,2347.0,2346.4,6.80157586]
[1770082452718,2.23628891,2346.9,2346.5,6.80157586]
[1770082453017,2.23628891,2346.9,2346.4,6.80157586]
[1770082453419,2.23628891,2346.9,2346.5,6.80157586]
[1770082453614,2.23628891,2346.9,2346.4,6.80157586]
[1770082454015,2.23628891,2346.9,2346.5,6.80157586]
[1770082454315,7.002,2347.0,2346.8,6.80157586]
[1770082454512,6.82469007,2347.0,2346.8,2.32939912]
[1770082454712,2.53178098,2347.8,2346.8,2.32939912]
[1770082454909,2.45034551,2348.0,2346.8,2.32939912]
[1770082455217,3.69318682,2347.9,2346.8,2.32939912]
[1770082455417,7.009,2348.0,2346.8,2.32939912]
[1770082455810,7.01423916,2348.0,2346.8,2.32939912]
[1770082457512,2.21026442,2347.9,2346.8,2.32939912]
[1770082458316,0.00523916,2348.0,2347.2,2.32939912]
[1770082458618,2.5,2348.6,2347.2,2.32939912]
[1770082459520,2.50331185,2348.6,2347.2,2.32939912]
[1770082459818,2.50331185,2348.6,2347.2,2.54261912]
[1770082461116,0.00331185,2348.6,2347.5,2.45312006]
[1770082461320,0.00331185,2348.6,2347.5,2.66631006]
[1770082461918,2.21349643,2349.3,2347.7,2.66629006]
[1770082462222,0.21302,2349.4,2347.9,2.45312006]
[1770082462416,2.43769492,2349.4,2347.9,2.45312006]
[1770082462918,2.22467492,2349.2,2347.9,2.45643664]
[1770082464120,2.22875591,2349.0,2347.9,2.45643664]
[1770082464320,0.21307,2348.9,2347.9,2.45643664]
[1770082464522,2.22875591,2349.1,2347.9,2.45643664]
[1770082466921,2.44180591,2349.1,2347.9,2.45643664]
[1770082469930,2.20723025,2348.5,2347.3,2.45312006]
[1770082470136,2.20723025,2348.2,2347.3,2.45312006]
[1770082470728,2.42037025,2348.1,2347.0,2.45312006]
[1770082471032,2.42039025,2347.9,2346.7,2.45312006]
[1770082471234,5.18008221,2348.2,2346.7,2.45312006]
[1770082471433,5.18008221,2348.2,2346.7,2.45860316]
[1770082472033,2.19708221,2348.1,2346.7,2.45860316]
[1770082472332,2.41022221,2348.1,2346.7,2.45860316]
[1770082475434,2.983,2348.2,2347.0,2.45312006]
[1770082475832,2.983,2348.2,2346.7,2.45860316]
[1770082475833,2.18976907,2348.1,2346.7,2.45860316]
[1770082476033,2.18976907,2347.6,2346.7,0.0054831]
[1770082476233,2.19323954,2347.6,2346.7,0.0054831]
[1770082476630,2.18976907,2347.4,2346.4,2.45312006]
[1770082476829,2.18976907,2347.4,2346.1,11.41406384]
[1770082477032,2.41067681,2347.3,2346.2,2.45312006]
[1770082477228,7.1389057,2347.6,2346.2,2.45312006]
[1770082477437,2.19746681,2347.2,2346.2,2.45312006]
[1770082477740,2.41071681,2346.9,2345.7,2.45312006]
[1770082478038,2.19746681,2346.7,2345.7,2.45312006]
[1770082478237,2.19746681,2346.7,2345.4,2.45312006]
[1770082478434,2.41074681,2346.6,2345.4,2.45312006]
[1770082478636,2.19746681,2346.4,2345.4,2.45312006]
[1770082478829,2.19746681,2346.4,2345.4,2.45773152]
[1770082479043,2.41075681,2346.4,2345.4,0.00461146]
[1770082479239,2.35396651,2346.3,2345.1,2.45312006]
[1770082479438,2.14066651,2346.6,2345.1,2.45312006]
[1770082480134,2.35391651,2346.9,2345.1,2.45312006]
[1770082480338,10.03191651,2346.9,2345.1,2.66986963]
[1770082480636,7.678,2346.9,2345.3,2.45312006]
[1770082480837,7.678,2346.9,2345.3,2.66651006]
[1770082481530,5.3134971,2347.5,2345.5,2.66649006]
[1770082481531,3.1972,2347.5,2345.5,2.66649006]
[1770082481837,2.10789946,2347.4,2345.5,2.66649006]
[1770082482038,2.10789946,2347.4,2345.7,2.45312006]
[1770082483139,4.14060792,2346.7,2345.2,2.45312006]
[1770082483641,2.10546979,2346.7,2345.2,2.45312006]
[1770082484239,0.21326,2346.8,2345.2,2.45312006]
[1770082484439,0.21326,2346.8,2345.2,2.66652006]
[1770082484734,0.21326,2346.8,2345.1,0.00333957]
[1770082484735,2.10546979,2347.0,2345.4,2.45312006]
[1770082486938,2.10546979,2347.0,2345.4,2.66650006]
[1770082488246,2.10546979,2347.0,2345.4,2.67550006]
[1770082488443,40.01828709,2347.6,2346.1,2.45312006]
[1770082488637,2.10471611,2347.6,2346.1,2.45312006]
[1770082488841,2.10124564,2347.4,2346.1,2.45312006]
[1770082489042,0.00347047,2347.6,2346.1,2.45312006]
[1770082489242,0.00347047,2347.6,2346.3,2.45312006]
[1770082490144,0.00347047,2347.6,2346.3,2.66642006]
[1770082490344,0.00347047,2347.6,2346.9,2.50525167]
[1770082490647,10.60359343,2348.4,2346.9,2.50525167]
[1770082490945,8.7815653,2348.4,2346.9,2.50525167]
[1770082491140,2.1014553,2348.4,2347.0,0.21323]
[1770082491348,9.30851309,2348.7,2347.1,2.50525167]
[1770082491645,0.00464501,2348.4,2347.1,2.50525167]
[1770082494748,2.32843336,2348.3,2347.1,2.50525167]
[1770082496348,0.00464501,2348.4,2347.1,2.50525167]
[1770082496849,2.126955,2348.4,2347.1,2.50525167]
[1770082498650,2.340065,2348.4,2347.1,2.50525167]
[1770082498951,2.12822994,2348.3,2347.1,2.50525167]
[1770082499449,2.36618629,2348.1,2347.0,0.00407068]
[1770082499651,2.15304629,2347.9,2347.0,0.00407068]
[1770082500351,2.36620629,2347.9,2347.0,0.00407068]
[1770082500649,2.15304629,2347.8,2347.0,0.00407068]
[1770082500846,2.15304629,2347.8,2346.8,2.50525167]
[1770082501650,2.36620629,2347.8,2346.8,2.50525167]
[1770082501950,2.36620629,2347.8,2346.8,2.51043433]
[1770082504349,2.14355564,2347.6,2346.8,0.00518266]
[1770082504544,2.35675564,2347.4,2346.1,2.50525167]
[1770082504851,2.14355564,2347.2,2346.1,2.50525167]
[1770082505151,2.14355564,2347.0,2345.8,2.50525167]
[1770082505746,2.14355564,2347.0,2345.8,2.5085511]
[1770082506148,2.35679564,2347.0,2345.8,2.5085511]
[1770082506548,2.35917898,2346.6,2345.8,0.00329943]
[1770082506846,2.35919898,2346.4,2345.4,2.50525167]
[1770082507049,2.14590898,2346.2,2344.7,2.50525167]
[1770082507246,2.35921898,2346.2,2344.7,2.50525167]
[1770082507647,2.36348737,2346.2,2344.7,2.50992915]
[1770082507848,0.00426839,2346.2,2345.1,2.50525167]
[1770082508048,0.00426839,2346.2,2345.1,2.71866167]
[1770082509555,0.00426839,2346.2,2345.3,2.50525167]
[1770082511055,2.34848565,2347.1,2345.6,2.50525167]
[1770082511246,5.51148565,2347.1,2345.6,2.50525167]
[1770082511656,5.29825565,2347.1,2345.6,2.50525167]
[1770082511855,5.29825565,2347.1,2345.8,2.50525167]
[1770082511856,2.15100095,2347.0,2345.8,2.50525167]
[1770082512055,2.15502933,2347.0,2345.8,2.50525167]
[1770082512556,0.00402838,2347.0,2345.8,2.50525167]
[1770082513162,2.17713446,2347.0,2345.8,2.50525167]
[1770082514863,0.00402838,2347.0,2345.8,2.50525167]
[1770082515259,0.00402838,2347.0,2345.8,2.71859167]
[1770082516165,2.18890145,2347.0,2345.8,2.50525167]
[1770082516365,2.40214145,2347.0,2345.8,2.50525167]
[1770082516558,2.18487307,2346.8,2345.8,2.50525167]
[1770082519359,2.18487307,2346.8,2345.3,0.21339]
[1770082519360,2.39812307,2346.8,2345.5,2.50525167]
[1770082519665,2.39665096,2346.5,2345.2,2.50525167]
[1770082519864,7.045,2346.4,2345.2,2.50525167]
[1770082521766,2.18052965,2346.3,2345.2,2.50525167]
[1770082522067,0.21327,2346.7,2345.4,2.45796424]
[1770082522366,6.768,2346.8,2345.4,2.67134424]
[1770082522767,0.00402838,2347.0,2345.8,2.45796424]
[1770082523368,2.18434811,2347.0,2345.8,2.45796424]
[1770082524068,0.00402838,2347.0,2345.8,2.45796424]
[1770082526570,2.15257191,2346.8,2345.8,2.45796424]
[1770082526870,9.61921131,2346.7,2345.8,2.45796424]
[1770082527068,2.53621131,2346.6,2345.8,2.45796424]
[1770082527270,4.68980399,2346.6,2345.5,2.45796424]
[1770082527770,2.53621131,2346.5,2345.5,2.45796424]
[1770082528260,2.15359268,2346.4,2345.5,2.45796424]
[1770082528465,2.15359268,2346.4,2345.3,2.984]
[1770082528661,2.15359268,2346.3,2345.2,2.45796424]
[1770082529265,2.15791817,2346.2,2345.2,2.45796424]
[1770082529467,7.086,2346.1,2345.2,2.45796424]
[1770082530867,7.086,2346.1,2344.8,3.80205134]
[1770082530868,2.15791817,2346.0,2344.9,2.45796424]
[1770082531071,2.15791817,2345.9,2344.9,2.45796424]
[1770082531266,2.53621131,2346.0,2344.9,2.45796424]
[1770082531468,5.05552121,2347.0,2345.7,2.45796424]
[1770082531671,12.0,2346.9,2345.7,2.45796424]
[1770082532171,12.0,2346.9,2346.0,2.45796424]
[1770082533572,12.0,2346.9,2346.1,2.45796424]
[1770082537573,0.00402838,2347.0,2346.1,2.45796424]
[1770082537773,12.0,2346.9,2346.1,2.45796424]
[1770082538479,0.00402838,2347.0,2346.1,2.45796424]
[1770082538480,12.0,2346.8,2346.1,2.45796424]
[1770082539272,2.17712644,2346.7,2345.8,2.54408786]
[1770082539478,2.17712644,2346.7,2345.6,2.45796424]
[1770082539683,12.0,2346.6,2345.6,2.45796424]
[1770082539978,12.0,2346.9,2345.7,2.45796424]
[1770082541377,14.19009417,2346.9,2345.7,2.45796424]
[1770082541573,2.19009417,2346.8,2345.7,2.45796424]
[1770082542076,2.19009417,2346.6,2345.5,2.54408786]
[1770082542277,2.19009417,2346.6,2345.5,5.0020521]
[1770082543671,12.0,2346.5,2345.5,2.45796424]
[1770082543869,12.0,2346.5,2345.6,2.45796424]
[1770082544075,14.18767944,2346.5,2345.6,2.45796424]
[1770082544276,2.18767944,2346.4,2345.6,2.45796424]
[1770082544476,2.18767944,2346.4,2345.4,2.45796424]
[1770082544677,12.0,2346.3,2345.4,2.45796424]
[1770082546182,2.1876729,2346.2,2345.4,2.45796424]
[1770082548375,2.1876729,2346.2,2345.1,2.54408786]
[1770082548376,14.18810999,2346.1,2345.1,5.0020521]
[1770082548678,2.18810999,2346.1,2345.1,2.45796424]
[1770082551489,12.0,2346.0,2345.1,2.45796424]
[1770082551990,14.18844162,2346.0,2345.1,2.45796424]
[1770082552490,2.18844162,2345.9,2344.9,2.54408786]
[1770082552690,2.18844162,2345.8,2344.8,2.43573503]
[1770082552889,14.18844162,2345.8,2344.8,2.43573503]
[1770082553287,2.19478537,2345.7,2344.8,2.43573503]
[1770082554590,12.0,2345.6,2344.8,2.43573503]
[1770082554791,14.19478537,2345.6,2344.8,2.43573503]
[1770082554987,12.0,2345.6,2344.7,0.00467748]
[1770082555296,2.19923584,2345.3,2344.2,2.54408786]
[1770082555791,12.0,2345.2,2344.2,2.54408786]
[1770082556190,12.0,2345.2,2344.1,5.52908786]
[1770082556390,14.31725915,2345.2,2344.2,0.00409276]
[1770082557292,2.3135454,2345.1,2344.2,0.00409276]
[1770082557790,14.3135454,2345.0,2344.2,0.00409276]
[1770082559589,14.3135454,2345.0,2344.2,2.43982779]
[1770082561495,0.00371375,2345.2,2344.2,2.43982779]
[1770082561700,12.00371375,2345.2,2344.3,2.43573503]
[1770082562700,12.00371375,2345.2,2344.3,2.64921503]
[1770082562898,2.3135454,2345.1,2344.2,0.00409276]
[1770082563202,2.3135454,2345.1,2344.2,2.43982779]
[1770082565301,2.3135454,2344.9,2344.2,0.00409276]
[1770082566095,2.3135454,2344.7,2344.2,0.00409276]
[1770082566299,2.3135454,2344.7,2343.9,2.43573503]
[1770082566496,12.0,2344.6,2343.9,2.43573503]
[1770082567403,12.0,2344.6,2343.9,2.43889869]
[1770082567602,2.3135454,2344.7,2343.9,2.43889869]
[1770082567802,12.0,2344.6,2343.9,2.43889869]
[1770082568395,2.3135454,2344.7,2343.9,2.43889869]
[1770082568600,14.3135454,2344.6,2343.9,2.43889869]
[1770082568795,2.3135454,2344.6,2343.9,2.43889869]
[1770082569206,2.3135454,2344.6,2343.9,0.00316366]
[1770082569405,2.3135454,2344.4,2343.4,2.43573503]
[1770082569802,12.0,2344.3,2343.4,2.43573503]
[1770082570400,14.3135454,2344.3,2343.4,2.44061108]
[1770082570603,2.3135454,2344.2,2343.4,2.44061108]
[1770082573103,2.3135454,2344.0,2343.4,0.00487605]
[1770082573507,12.0,2344.1,2343.4,2.44061108]
[1770082574505,2.986,2344.8,2343.6,2.64927503]
[1770082574804,12.0,2344.7,2343.6,2.65827503]
[1770082576806,12.0,2344.7,2343.8,2.43573503]
[1770082577309,12.0,2344.7,2344.1,2.43573503]
[1770082578004,2.3135454,2344.6,2343.9,0.009]
[1770082578907,12.0,2344.5,2343.9,0.009]
[1770082579108,14.3135454,2344.5,2343.9,0.009]
[1770082579608,12.0,2344.5,2343.9,0.009]
[1770082579802,12.0,2344.5,2343.9,2.44473503]
[1770082581901,12.0,2344.5,2343.9,2.43573503]
[1770082582607,2.3135454,2344.8,2343.9,2.43573503]
[1770082582809,12.0,2344.7,2343.9,2.43573503]
[1770082584309,12.0,2344.7,2344.0,2.49020611]
[1770082585613,12.0,2344.7,2344.1,2.49020611]
[1770082585803,0.00371375,2345.2,2344.2,2.49020611]
[1770082586006,2.35985943,2345.0,2344.2,2.49020611]
[1770082587209,10.72663578,2344.9,2344.2,2.49020611]
[1770082587410,10.72663578,2345.1,2344.2,2.49020611]
[1770082588008,10.72663578,2345.1,2344.5,0.21346]
[1770082588208,10.72663578,2345.1,2344.6,2.49020611]
[1770082588717,0.00371375,2345.2,2344.6,2.49020611]
[1770082589013,7.20998514,2345.2,2344.7,2.49020611]
[1770082590306,2.35985943,2345.9,2344.9,2.49020611]
[1770082590615,7.20627139,2345.6,2344.9,2.49020611]
[1770082590814,9.56613082,2345.8,2344.9,2.49020611]
[1770082591109,2.35985943,2345.8,2344.9,2.49020611]
[1770082591311,2.36463192,2345.8,2344.9,2.49020611]
[1770082591514,2.36463192,2345.8,2344.8,2.54408786]
[1770082591515,2.35985943,2345.6,2344.8,2.54408786]
[1770082592405,2.35985943,2345.6,2344.7,5.82952786]
[1770082592611,7.20627139,2345.5,2344.7,5.82952786]
[1770082592914,9.56613082,2345.5,2344.7,5.82952786]
[1770082593217,2.35985943,2345.4,2344.7,5.82952786]
[1770082593616,7.20627139,2345.3,2344.7,5.82952786]
[1770082593818,2.35985943,2345.2,2344.7,2.54408786]
[1770082594015,2.35985943,2345.2,2344.6,2.54408786]
[1770082594218,0.00477249,2345.8,2344.4,2.54408786]
[1770082594219,9.56613082,2345.1,2344.4,2.54408786]
[1770082594420,2.35985943,2345.1,2344.4,2.54408786]
[1770082594714,7.20627139,2345.0,2344.4,5.03429397]
[1770082595012,7.20627139,2345.0,2344.4,2.54408786]
[1770082595216,2.35985943,2344.9,2344.4,2.54408786]
[1770082595519,7.20627139,2345.0,2344.5,2.49020611]
[1770082595816,2.35985943,2345.5,2344.5,2.49020611]
[1770082596112,7.20627139,2345.4,2344.5,2.49020611]
[1770082596417,7.20627139,2345.4,2344.5,2.70366611]
[1770082596716,7.20627139,2345.4,2344.7,2.49020611]
[1770082597620,2.35985943,2345.3,2344.5,2.54408786]
[1770082597820,2.35985943,2345.2,2344.4,2.54408786]
[1770082598021,2.35985943,2345.1,2344.3,2.55308786]
[1770082598217,2.35985943,2345.0,2344.3,5.04329397]
[1770082598418,2.35985943,2345.5,2344.4,2.49020611]
[1770082598719,2.35985943,2345.4,2344.4,2.49020611]
[1770082600120,7.20627139,2345.3,2344.4,2.49020611]
[1770082600322,9.56613082,2345.3,2344.4,5.03429397]
[1770082600717,2.35985943,2345.2,2344.4,5.03429397]
[1770082602621,7.20627139,2345.1,2344.5,2.70366611]
[1770082602922,2.35985943,2345.5,2344.5,2.70366611]
[1770082603119,7.20627139,2345.4,2344.7,2.70364611]
[1770082604524,9.56613082,2345.4,2344.7,2.70364611]
[1770082605223,9.56613082,2345.4,2344.7,5.24773397]
[1770082607623,7.20627139,2345.4,2344.7,5.24773397]
[1770082607926,7.20627139,2345.4,2344.8,5.24772397]
[1770082608219,7.20627139,2345.4,2344.8,5.25672397]
[1770082608423,7.20627139,2345.4,2344.8,8.35372397]
[1770082610324,7.20627139,2345.4,2344.9,2.45194953]
[1770082610520,7.20627139,2345.4,2344.9,2.46094953]
[1770082611422,7.20627139,2345.4,2344.9,5.00503739]
[1770082612724,2.35985943,2345.6,2344.9,5.00503739]
[1770082612925,7.20627139,2345.5,2344.9,5.00503739]
[1770082613425,9.57343244,2345.5,2344.9,2.55308786]
[1770082614719,9.57343244,2345.5,2345.1,2.45194953]
[1770082614720,7.20627139,2345.5,2345.1,2.45194953]
[1770082614921,7.20627139,2345.5,2345.1,2.45680718]
[1770082615117,9.57343244,2345.5,2345.1,0.00485765]
[1770082615323,7.20627139,2345.5,2345.1,0.00485765]
[1770082615923,7.20627139,2345.5,2345.1,2.45680718]
[1770082616126,0.00477249,2345.8,2345.2,3.72190514]
[1770082616326,2.52559177,2345.8,2345.3,2.54934925]
[1770082616727,2.52559177,2345.8,2345.1,0.00485765]
[1770082618725,2.52559177,2345.8,2345.0,0.009]
[1770082618928,2.52559177,2345.8,2344.8,3.80812478]
[1770082619928,2.52559177,2345.8,2344.8,3.81215172]
[1770082620322,2.52559177,2345.8,2344.8,0.00402694]
[1770082620522,2.52559177,2345.8,2345.0,2.45194953]
[1770082620831,2.52559177,2345.8,2345.1,2.45194953]
[1770082621933,0.00477249,2345.8,2345.2,2.66534953]
[1770082622121,2.36716105,2346.8,2345.6,2.66530953]
[1770082622323,2.36716105,2346.8,2345.8,6.47341431]
[1770082622631,2.36716105,2346.8,2346.1,2.45194953]
[1770082623029,2.37230727,2346.8,2346.1,2.45194953]
[1770082623927,2.37230727,2346.8,2345.7,8.82474105]
[1770082624129,2.37230727,2346.8,2345.4,3.80812478]
[1770082624330,2.58043105,2346.6,2345.3,3.137]
[1770082624531,2.36716105,2346.4,2345.3,3.137]
[1770082624932,2.36716105,2346.4,2345.3,5.58894953]
[1770082625227,2.36716105,2346.4,2345.4,2.45194953]
[1770082625625,2.36716105,2346.4,2345.3,3.137]
[1770082627324,2.36716105,2346.2,2345.0,2.985]
[1770082627529,2.36716105,2346.2,2344.8,4.02558172]
[1770082628129,2.36716105,2346.2,2344.8,0.21745694]
[1770082628925,2.36716105,2346.2,2344.8,0.00402694]
[1770082628926,2.58047105,2346.2,2344.8,0.00402694]
[1770082629131,2.58047105,2346.2,2344.8,6.26410125]
[1770082630929,2.58047105,2346.2,2344.9,2.45194953]
[1770082632029,2.58047105,2346.2,2344.9,6.26007431]
[1770082632533,2.36716105,2346.2,2345.1,2.45194953]
[1770082632932,2.36716105,2346.2,2345.2,2.45194953]
[1770082633334,2.36716105,2346.2,2345.1,3.80812478]
[1770082633531,2.36716105,2346.0,2344.9,3.80812478]
[1770082633729,2.36716105,2346.0,2344.8,3.81215172]
[1770082634834,2.36716105,2346.0,2344.8,6.26410125]
[1770082635837,2.36716105,2346.0,2344.8,3.81215172]
[1770082637933,2.36716105,2346.0,2344.8,0.00402694]
[1770082637934,2.36716105,2345.8,2344.8,0.00402694]
[1770082639438,2.58051105,2345.8,2344.8,0.00402694]
[1770082641938,6.309,2346.0,2344.2,3.80812478]
[1770082641939,2.6269849,2345.6,2344.2,3.80812478]
[1770082642138,2.6269849,2345.6,2344.1,9.94012478]
[1770082642845,2.6269849,2345.6,2344.1,12.44567036]
[1770082643041,2.6269849,2345.6,2344.1,12.44900734]
[1770082643542,2.6269849,2345.6,2344.2,2.50554558]
[1770082644146,0.21337,2345.5,2344.2,2.50554558]
[1770082644347,2.4136249,2345.4,2344.2,2.50554558]
[1770082644548,2.6270049,2345.4,2344.1,6.13533698]
[1770082644947,2.6270049,2345.4,2344.1,8.64088256]
[1770082645146,2.6270049,2345.4,2344.2,2.50554558]
[1770082647549,2.4136249,2345.4,2344.2,2.71903558]
[1770082648657,2.4136249,2345.8,2344.7,2.50554558]
[1770082648857,2.986,2346.0,2344.9,2.50554558]
[1770082649057,2.4136249,2346.1,2344.9,2.50554558]
[1770082649352,2.4136249,2346.1,2345.1,2.50506981]
[1770082651757,2.4136249,2346.5,2345.7,2.50554558]
[1770082651953,2.4136249,2346.7,2345.7,2.71889558]
[1770082652159,2.41877112,2346.8,2345.7,2.71889558]
[1770082652756,2.41877112,2346.8,2345.8,2.50554558]
[1770082652958,2.41877112,2346.8,2345.8,2.50876863]
[1770082654859,0.00514622,2346.8,2345.8,2.72210863]
[1770082655059,0.00514622,2346.8,2345.9,2.71888558]
[1770082655460,2.4136249,2347.1,2346.2,2.50554558]
[1770082655661,2.4136249,2347.7,2346.2,2.50554558]
[1770082656160,2.4136249,2347.7,2346.2,2.71885558]
[1770082656558,2.41890653,2347.7,2346.2,2.71885558]
[1770082657158,0.21321,2347.3,2345.9,3.80812478]
[1770082657363,2.4136249,2346.9,2345.8,0.00322305]
[1770082657560,2.4136249,2346.4,2345.2,6.79312478]
[1770082657764,2.4136249,2346.4,2345.2,2.985]
[1770082658764,2.4136249,2346.4,2345.2,2.98999111]
[1770082659166,2.4136249,2346.4,2345.2,5.49553669]
[1770082660658,2.4136249,2346.4,2345.3,2.50554558]
[1770082664765,2.4136249,2346.4,2345.2,2.98999111]
[1770082669069,2.4136249,2346.4,2345.2,0.00499111]
[1770082670370,2.4136249,2346.4,2345.2,2.30104642]
[1770082672862,2.4136249,2346.4,2345.2,2.51444642]
[1770082675071,2.34056046,2346.7,2345.6,2.29605531]
[1770082676173,2.34056046,2346.7,2345.6,2.50941531]
[1770082676368,2.34056046,2346.7,2345.6,0.21336]
[1770082676574,2.34056046,2346.7,2345.4,3.80812478]
[1770082676770,2.34056046,2346.7,2345.6,2.54447587]
[1770082678076,2.34056046,2346.7,2345.9,2.29605531]
[1770082678269,2.34056046,2346.7,2346.0,2.29605531]
[1770082678773,2.34056046,2346.7,2346.0,4.84053118]
[1770082679472,2.34056046,2346.7,2346.1,2.54447587]
[1770082679674,2.34056046,2347.1,2346.1,4.84053118]
[1770082680170,2.34056046,2347.1,2346.2,2.29605531]
[1770082680374,2.34056046,2347.4,2346.6,2.29605531]
[1770082680971,2.34056046,2347.4,2346.6,4.84053118]
[1770082681377,2.34584209,2347.7,2346.7,2.29605531]
[1770082681567,2.34584209,2347.7,2346.6,2.54447587]
[1770082681872,0.00528163,2347.7,2347.1,2.29605531]
[1770082682075,5.32556046,2348.3,2347.4,2.29605531]
[1770082682268,0.33434049,2348.7,2347.9,2.29605531]
[1770082682471,2.34056046,2348.9,2347.9,4.84053118]
[1770082682668,2.34056046,2348.9,2348.0,2.29605531]
[1770082682872,2.34056046,2348.9,2347.6,2.54447587]
[1770082683074,2.34056046,2348.7,2347.3,5.71047587]
[1770082683672,2.34056046,2348.6,2347.1,2.54810836]
[1770082683873,2.34056046,2348.3,2347.1,0.00363249]
[1770082684071,2.55368046,2348.3,2347.1,0.00363249]
[1770082684371,2.34056046,2348.1,2347.1,0.00363249]
[1770082685171,2.34056046,2348.1,2346.5,2.5]
[1770082685470,2.34056046,2348.1,2346.6,2.29605531]
[1770082686177,2.34056046,2347.8,2346.6,2.30133081]
[1770082688271,2.34056046,2348.3,2346.8,2.29605531]
[1770082689573,2.34056046,2348.3,2346.9,2.50929531]
[1770082690973,2.34056046,2348.3,2347.1,2.29605531]
[1770082691270,2.34056046,2348.3,2347.1,2.50928531]
[1770082692377,2.34056046,2348.3,2346.8,4.84053118]
[1770082693076,2.55368046,2348.3,2346.6,5.92802137]
[1770082693277,2.34056046,2348.1,2346.6,5.92802137]
[1770082693571,2.34056046,2348.1,2346.7,2.29605531]
[1770082693877,2.34056046,2348.1,2346.8,2.29605531]
[1770082694177,2.34056046,2348.1,2346.8,2.50930531]
[1770082696277,2.34056046,2348.1,2347.0,2.29605531]
[1770082697378,2.34056046,2348.1,2347.2,2.29605531]
[1770082698178,2.34056046,2348.1,2346.9,2.54447587]
[1770082698379,2.34056046,2348.1,2346.8,2.54447587]
[1770082698579,2.34056046,2348.1,2346.7,4.84053118]
[1770082698879,2.34056046,2348.1,2347.0,2.29605531]
[1770082699175,2.34056046,2348.1,2347.1,2.29605531]
[1770082700270,2.36582667,2348.5,2347.1,2.50927531]
[1770082700883,2.36582667,2348.5,2347.3,2.29928878]
[1770082701380,2.36582667,2348.5,2347.2,0.21322]
[1770082701679,2.57892667,2348.5,2347.0,2.29928878]
[1770082702181,2.57892667,2348.5,2347.0,4.84376465]
[1770082703873,2.57892667,2348.5,2347.0,5.05699465]
[1770082704072,2.57892667,2348.5,2347.1,2.29928878]
[1770082704281,2.57892667,2348.5,2347.2,2.29928878]
[1770082706183,2.57892667,2348.5,2347.2,4.84376465]
[1770082707987,2.36582667,2347.9,2346.8,2.54447587]
[1770082708182,2.36582667,2347.7,2346.6,2.9882755]
[1770082708384,2.36582667,2347.5,2346.6,0.0052755]
[1770082708779,2.57901667,2347.5,2346.6,0.0052755]
[1770082709886,2.36582667,2347.5,2346.6,0.0052755]
[1770082710082,2.36582667,2347.5,2346.6,2.30456428]
[1770082710382,2.36582667,2347.5,2346.7,4.84376465]
[1770082710586,2.983,2347.7,2346.8,2.29928878]
[1770082710888,5.34882667,2347.7,2346.8,2.29928878]
[1770082711585,2.36582667,2347.6,2346.7,2.54447587]
[1770082712185,2.36582667,2347.6,2346.7,4.84376465]
[1770082714091,2.983,2347.7,2346.8,2.29928878]
[1770082714291,2.36582667,2347.9,2347.1,2.29928878]
[1770082715092,2.36582667,2347.9,2347.1,4.84376465]
[1770082715291,2.36582667,2347.9,2347.2,2.54447587]
[1770082716595,2.36582667,2347.9,2347.1,2.54447587]
[1770082717094,2.36582667,2347.9,2347.2,2.54447587]
[1770082717594,2.36582667,2348.4,2347.3,2.29928878]
[1770082718493,2.36582667,2348.4,2347.3,4.84376465]
[1770082718886,38.11130143,2348.7,2347.4,2.29928878]
[1770082719091,0.00390019,2348.9,2348.1,4.84376465]
[1770082719594,0.00390019,2348.9,2348.5,2.29928878]
[1770082719892,0.00390019,2348.9,2348.5,2.30390871]
[1770082720386,2.36582667,2349.3,2348.5,2.30390871]
[1770082721388,2.36999911,2349.3,2348.5,2.30390871]
[1770082721787,2.36999911,2349.3,2348.5,0.00461993]
[1770082724494,2.58302911,2349.3,2348.1,2.54447587]
[1770082724700,2.58302911,2349.3,2348.0,3.175]
[1770082725495,2.58302911,2349.3,2347.8,2.54447587]
[1770082725688,2.57888667,2349.0,2347.8,0.0033564]
[1770082725889,2.36582667,2348.8,2347.8,0.0033564]
[1770082727799,2.36582667,2348.8,2347.3,2.54447587]
[1770082727999,2.36582667,2348.5,2347.3,2.54447587]
[1770082728700,2.36582667,2348.5,2347.3,4.84376465]
[1770082728899,2.36582667,2348.5,2347.3,4.84703689]
[1770082729998,2.36582667,2348.5,2347.4,2.29928878]
[1770082734000,2.36582667,2348.5,2347.4,4.84376465]
[1770082734207,2.36582667,2348.5,2347.5,2.36723918]
[1770082734609,2.36582667,2348.5,2347.3,2.54774811]
[1770082734806,2.36582667,2348.5,2347.3,0.00327224]
[1770082735206,2.34696944,2348.3,2347.3,0.00327224]
[1770082737007,2.56008944,2348.3,2347.3,0.00327224]
[1770082740708,2.34696944,2348.1,2347.3,0.00327224]